bitfinex/quotes_BTCUSD_20250225
["timestamp","ask_amount","ask_price","bid_price","bid_amount"]
[1740448087656,0.01120037,92500.0,92484.0,0.01485965]
[1740448087862,0.01120037,92500.0,92485.0,0.0827]
[1740448088023,0.01120037,92500.0,92486.0,0.00151338]
[1740448088526,0.01120037,92500.0,92485.0,0.0827]
[1740448089142,0.01120037,92500.0,92479.0,0.0008493]
[1740448089698,0.08628546,92499.0,92479.0,0.0008493]
[1740448089902,0.01055889,92498.0,92479.0,0.0008493]
[1740448090057,0.0130424,92498.0,92479.0,0.0008493]
[1740448091677,0.01345177,92497.0,92479.0,0.0008493]
[1740448091879,0.02690354,92497.0,92479.0,0.0008493]
[1740448092085,0.00247096,92496.0,92479.0,0.0008493]
[1740448092283,0.08628546,92488.0,92479.0,0.0008493]
[1740448092481,0.00246803,92487.0,92479.0,0.0008493]
[1740448093289,0.00816411,92480.0,92479.0,0.0008493]
[1740448093709,0.01062803,92480.0,92479.0,0.0008493]
[1740448098692,0.0218364,92480.0,92479.0,0.0008493]
[1740448100916,0.0218364,92480.0,92479.0,0.0820493]
[1740448101276,0.01937248,92480.0,92479.0,0.0820493]
[1740448101818,0.02182343,92480.0,92479.0,0.0820493]
[1740448103674,0.01365932,92480.0,92479.0,0.0820493]
[1740448104029,0.01120837,92480.0,92479.0,0.0820493]
[1740448107454,0.01120837,92480.0,92479.0,0.0008493]
[1740448107953,0.01345732,92480.0,92479.0,0.0008493]
[1740448108772,0.02152033,92480.0,92479.0,0.0008493]
[1740448111725,0.02152033,92480.0,92473.0,0.00012905]
[1740448112581,0.02152033,92480.0,92454.0,0.0793]
[1740448112767,0.08628546,92474.0,92457.0,0.00097797]
[1740448113186,0.08628546,92460.0,92414.0,0.5375]
[1740448113317,0.0082413,92455.0,92419.0,0.0819]
[1740448113519,0.08628546,92447.0,92419.0,0.0819]
[1740448113947,0.00223596,92446.0,92420.0,0.00151467]
[1740448114399,0.03482296,92446.0,92420.0,0.00151467]
[1740448114545,0.04798532,92446.0,92420.0,0.00151467]
[1740448115119,0.04798532,92446.0,92420.0,0.00164386]
[1740448116062,0.01539832,92446.0,92420.0,0.00164386]
[1740448116397,0.032585,92446.0,92420.0,0.00164386]
[1740448116576,0.0206602,92454.0,92420.0,0.00164386]
[1740448117323,0.00241734,92453.0,92421.0,0.31352461]
[1740448117488,0.01967129,92452.0,92423.0,0.0789]
[1740448117690,0.03500134,92453.0,92424.0,0.00151442]
[1740448117887,0.032584,92453.0,92424.0,0.00151442]
[1740448118116,0.03605429,92454.0,92424.0,0.07711434]
[1740448118318,0.00241734,92452.0,92425.0,0.0467]
[1740448118493,0.03605429,92454.0,92426.0,0.00151431]
[1740448118695,0.03605429,92454.0,92427.0,0.0756]
[1740448118696,0.02268786,92453.0,92427.0,0.0756]
[1740448119017,0.02268786,92453.0,92429.0,0.0751]
[1740448119018,0.00238703,92453.0,92429.0,0.0751]
[1740448119175,0.00238703,92453.0,92431.0,0.0751]
[1740448119384,0.00238703,92453.0,92432.0,0.07661417]
[1740448119587,0.01120752,92454.0,92432.0,0.07661417]
[1740448119840,0.00238584,92452.0,92434.0,0.0756]
[1740448120039,0.01120752,92454.0,92436.0,0.0777]
[1740448120237,0.01120752,92454.0,92439.0,0.0777]
[1740448120441,0.01120752,92454.0,92441.0,0.0777]
[1740448120598,0.01120752,92454.0,92442.0,0.08001409]
[1740448121011,0.00238584,92453.0,92442.0,0.08001409]
[1740448122334,0.00238584,92453.0,92442.0,0.0785]
[1740448122664,0.15,92456.0,92442.0,0.0785]
[1740448123105,0.09706222,92457.0,92442.0,0.0785]
[1740448123355,0.15,92461.0,92442.0,0.0785]
[1740448123523,0.15,92461.0,92440.0,0.85102461]
[1740448123524,0.00242027,92456.0,92440.0,0.85102461]
[1740448123795,0.02546124,92455.0,92432.0,0.0764]
[1740448124256,0.02787841,92455.0,92432.0,0.0764]
[1740448124491,0.08628546,92450.0,92432.0,0.0764]
[1740448124748,0.182584,92454.0,92432.0,0.0764]
[1740448124949,0.00240626,92449.0,92432.0,0.0764]
[1740448125166,0.02590456,92448.0,92432.0,0.0764]
[1740448125314,0.00240626,92448.0,92433.0,0.00151445]
[1740448125722,0.02546124,92455.0,92433.0,0.00151445]
[1740448126129,0.02546124,92455.0,92432.0,0.0764]
[1740448126130,0.00240542,92454.0,92432.0,0.0764]
[1740448127177,0.00815119,92451.0,92432.0,0.0764]
[1740448127392,0.00240542,92454.0,92433.0,0.00151452]
[1740448127598,0.00240339,92453.0,92435.0,0.0759]
[1740448127895,0.09706222,92456.0,92438.0,0.0759]
[1740448128097,0.00240339,92452.0,92439.0,0.00151415]
[1740448128318,0.09706222,92456.0,92439.0,0.00151415]
[1740448128753,0.00240339,92455.0,92439.0,0.00151415]
[1740448128955,0.00994656,92454.0,92438.0,0.0759]
[1740448129372,0.00240339,92453.0,92438.0,0.0759]
[1740448129575,0.00241246,92452.0,92438.0,0.0759]
[1740448129976,0.15,92455.0,92438.0,0.0759]
[1740448130178,0.00241256,92451.0,92439.0,0.00151422]
[1740448130364,0.15,92461.0,92439.0,0.01393564]
[1740448130693,0.15,92461.0,92439.0,0.00151422]
[1740448130881,0.00241256,92460.0,92439.0,0.00151422]
[1740448132272,0.01121082,92459.0,92439.0,0.00151422]
[1740448132719,0.00241256,92458.0,92439.0,0.00151422]
[1740448132918,0.00241256,92458.0,92440.0,0.31352461]
[1740448133079,0.00241256,92458.0,92441.0,0.0015141]
[1740448133274,0.01121082,92459.0,92441.0,0.0015141]
[1740448136641,0.01121082,92459.0,92440.0,0.31352461]
[1740448138445,0.01121082,92459.0,92441.0,0.00151414]
[1740448138857,0.01121082,92459.0,92442.0,0.31352461]
[1740448139030,0.01121082,92459.0,92443.0,0.0841141]
[1740448142168,0.01121082,92459.0,92444.0,0.31352461]
[1740448142379,0.01121082,92459.0,92446.0,0.0465]
[1740448142609,0.01121082,92459.0,92448.0,0.0801]
[1740448142937,0.01121082,92459.0,92449.0,0.08161393]
[1740448143155,0.01121082,92459.0,92452.0,0.1001]
[1740448143365,0.0016992,92460.0,92454.0,0.1261]
[1740448143596,0.015704,92492.0,92453.0,0.0215138]
[1740448143597,0.01119413,92506.0,92457.0,0.0811]
[1740448143815,0.01119413,92506.0,92450.0,0.89518846]
[1740448143816,0.09424392,92498.0,92459.0,0.0811]
[1740448144030,0.09424392,92498.0,92460.0,0.00151367]
[1740448144200,0.15942439,92497.0,92461.0,0.04424865]
[1740448144425,0.00942439,92497.0,92462.0,0.00151367]
[1740448144580,0.09424392,92498.0,92463.0,0.08]
[1740448144789,0.09424392,92498.0,92461.0,0.04424865]
[1740448144790,0.00795846,92498.0,92466.0,0.0498]
[1740448144968,0.00795846,92498.0,92467.0,0.08051355]
[1740448145180,0.00240897,92497.0,92467.0,0.08051355]
[1740448145379,0.00240897,92497.0,92469.0,0.0783]
[1740448145578,0.00240897,92497.0,92470.0,0.01375355]
[1740448145779,0.00240897,92497.0,92470.0,0.01224]
[1740448145979,0.08628546,92496.0,92469.0,0.0783]
[1740448146182,0.08933684,92496.0,92469.0,0.0783]
[1740448146384,0.19640343,92495.0,92469.0,0.0783]
[1740448146646,0.20644104,92495.0,92469.0,0.07981382]
[1740448146768,0.20644104,92495.0,92469.0,0.0783]
[1740448146966,0.20644104,92495.0,92462.0,0.0769]
[1740448147200,0.03278968,92494.0,92462.0,0.0769]
[1740448147613,0.00240897,92493.0,92463.0,0.00151382]
[1740448147789,0.00240897,92493.0,92464.0,0.0461]
[1740448147933,0.00240897,92493.0,92465.0,0.07791358]
[1740448148132,0.15,92494.0,92465.0,0.07791358]
[1740448148336,0.01119376,92495.0,92466.0,0.0794]
[1740448148559,0.01119376,92495.0,92468.0,0.0794]
[1740448148871,0.01119376,92495.0,92469.0,0.08091355]
[1740448152206,0.01119376,92495.0,92469.0,0.0794]
[1740448152443,0.01119376,92495.0,92470.0,0.00151365]
[1740448152862,0.01119376,92495.0,92469.0,0.0794]
[1740448153445,0.08628546,92494.0,92469.0,0.0794]
[1740448153706,0.08628546,92494.0,92469.0,0.39292461]
[1740448155381,0.08628546,92484.0,92469.0,0.39292461]
[1740448155635,0.08628546,92484.0,92469.0,0.0794]
[1740448155874,0.00243486,92483.0,92469.0,0.09195]
[1740448156080,0.15,92493.0,92469.0,0.09195]
[1740448156250,0.00243486,92482.0,92469.0,0.0794]
[1740448156462,0.00826905,92488.0,92469.0,0.0794]
[1740448156608,0.00245654,92481.0,92469.0,0.0794]
[1740448156812,0.00012866,92482.0,92470.0,0.00151386]
[1740448157216,0.00012866,92482.0,92470.0,0.01421519]
[1740448157438,0.00012866,92482.0,92470.0,0.0015138]
[1740448159595,0.00012866,92482.0,92471.0,0.31352461]
[1740448159754,0.00012866,92482.0,92472.0,0.00151368]
[1740448160809,0.00012866,92482.0,92473.0,0.0823]
[1740448161014,0.00012866,92482.0,92474.0,0.0015136]
[1740448162059,0.01132102,92482.0,92474.0,0.0015136]
[1740448164310,0.01132102,92482.0,92473.0,0.0823]
[1740448164954,0.01132102,92482.0,92474.0,0.00151362]
[1740448165517,0.01132102,92482.0,92475.0,0.31352461]
[1740448165759,0.01132102,92482.0,92476.0,0.00151362]
[1740448165963,0.01132102,92482.0,92477.0,0.03973382]
[1740448166189,0.01132102,92482.0,92478.0,0.00151362]
[1740448166739,0.01132102,92482.0,92475.0,0.31352461]
[1740448168298,0.01132102,92482.0,92476.0,0.00151374]
[1740448168794,0.01132102,92482.0,92475.0,0.31352461]
[1740448169530,0.01132102,92482.0,92476.0,0.00151374]
[1740448170273,0.01132102,92482.0,92475.0,0.35310707]
[1740448170274,0.01132102,92482.0,92475.0,0.31352461]
[1740448175890,0.00245015,92481.0,92475.0,0.31352461]
[1740448177363,0.00245015,92481.0,92469.0,0.0008491]
[1740448177971,0.24959887,92481.0,92469.0,0.0008491]
[1740448180251,0.24959887,92481.0,92469.0,0.04475647]
[1740448180456,0.24959887,92481.0,92470.0,0.00151392]
[1740448180662,0.24959887,92481.0,92471.0,0.0829]
[1740448180952,0.24959887,92481.0,92472.0,0.0015138]
[1740448182315,0.09959887,92481.0,92472.0,0.0015138]
[1740448182516,0.09959887,92481.0,92472.0,0.0023629]
[1740448183320,0.09959887,92481.0,92473.0,0.31503833]
[1740448183523,0.00245015,92481.0,92473.0,0.31352461]
[1740448183736,0.00012866,92482.0,92474.0,0.00151368]
[1740448184598,0.00012866,92482.0,92473.0,0.31352461]
[1740448185046,0.00012866,92482.0,92474.0,0.00151367]
[1740448185501,0.00012866,92482.0,92473.0,0.31352461]
[1740448186972,0.00245325,92481.0,92473.0,0.31352461]
[1740448189670,0.09714872,92479.0,92473.0,0.31352461]
[1740448190279,0.00245084,92478.0,92473.0,0.31352461]
[1740448192233,0.01119991,92477.0,92473.0,0.30232471]
[1740448192431,0.15245084,92478.0,92473.0,0.30232471]
[1740448192601,0.15,92478.0,92473.0,0.30232471]
[1740448192791,0.15,92478.0,92472.0,0.0008491]
[1740448192792,0.02742366,92477.0,92472.0,0.0008491]
[1740448193017,0.15,92476.0,92472.0,0.0008491]
[1740448193390,0.16120053,92476.0,92472.0,0.0008491]
[1740448193598,0.00245084,92475.0,92472.0,0.0008491]
[1740448194211,0.02480212,92475.0,92472.0,0.0008491]
[1740448194417,0.02480212,92475.0,92473.0,0.0008483]
[1740448195260,0.00245084,92475.0,92473.0,0.0008483]
[1740448196384,0.00245084,92475.0,92474.0,0.0782]
[1740448196810,0.00245084,92475.0,92474.0,0.1259]
[1740448197220,0.00245084,92475.0,92474.0,0.40415163]
[1740448199566,0.00239023,92475.0,92474.0,0.40415163]
[1740448201251,0.01120053,92476.0,92474.0,0.32595163]
[1740448201451,0.01120053,92476.0,92475.0,0.07881363]
[1740448204824,0.01120053,92476.0,92474.0,0.27825163]
[1740448205891,0.01120053,92476.0,92474.0,0.27910033]
[1740448206320,0.01289793,92476.0,92474.0,0.27910033]
[1740448207161,0.01289793,92476.0,92474.0,0.0008487]
[1740448207366,0.00246032,92475.0,92474.0,0.0008487]
[1740448208333,0.00246032,92475.0,92474.0,0.0821487]
[1740448209146,0.00246032,92475.0,92474.0,0.1278487]
[1740448209775,0.02932873,92478.0,92474.0,0.14088822]
[1740448209978,0.01353571,92475.0,92474.0,0.12936242]
[1740448210177,0.01121141,92475.0,92474.0,0.12936242]
[1740448210476,0.01121141,92475.0,92474.0,0.0821487]
[1740448210477,0.01353571,92475.0,92474.0,0.0821487]
[1740448210607,0.01353571,92475.0,92474.0,0.0008487]
[1740448210808,0.0023243,92475.0,92474.0,0.0008487]
[1740448211230,0.00012866,92482.0,92474.0,0.0008487]
[1740448211433,0.00232594,92475.0,92474.0,0.0008487]
[1740448211642,0.00012866,92482.0,92474.0,0.0008487]
[1740448211815,0.00232594,92475.0,92474.0,0.0008487]
[1740448212181,0.00232567,92475.0,92474.0,0.0008487]
[1740448212507,0.00012866,92482.0,92474.0,0.0008487]
[1740448212956,0.08628546,92481.0,92474.0,0.0008487]
[1740448213158,0.08628546,92481.0,92472.0,0.0008491]
[1740448213159,0.08861113,92481.0,92472.0,0.0008491]
[1740448213566,0.08950151,92481.0,92472.0,0.0008491]
[1740448213871,0.0898248,92481.0,92472.0,0.0008491]
[1740448214099,0.00121367,92480.0,92472.0,0.0008491]
[1740448214517,0.00232567,92479.0,92472.0,0.0008491]
[1740448214704,0.01132102,92479.0,92472.0,0.0008491]
[1740448215304,0.00232567,92479.0,92472.0,0.0008491]
[1740448215511,0.08628546,92481.0,92472.0,0.0008491]
[1740448215684,0.00231739,92478.0,92472.0,0.0008491]
[1740448215889,0.00795951,92473.0,92443.0,0.0833496]
[1740448216092,0.08628546,92471.0,92443.0,0.0833496]
[1740448216269,0.08628546,92471.0,92444.0,0.00848639]
[1740448216476,0.00231635,92470.0,92444.0,0.00848639]
[1740448216899,0.00231635,92470.0,92443.0,0.0833496]
[1740448217444,0.08628546,92461.0,92443.0,0.0008496]
[1740448217748,0.00230949,92460.0,92443.0,0.0008496]
[1740448219109,0.00805478,92445.0,92443.0,0.0008496]
[1740448219327,0.00829988,92453.0,92443.0,0.0008496]
[1740448219530,0.00230949,92444.0,92443.0,0.0008496]
[1740448219717,0.00829988,92453.0,92443.0,0.0008496]
[1740448219914,0.00228972,92444.0,92443.0,0.0008496]
[1740448220119,0.15,92472.0,92444.0,0.1278]
[1740448220378,8.806e-05,92453.0,92445.0,0.29263076]
[1740448220585,8.806e-05,92453.0,92445.0,0.27825163]
[1740448221241,0.01483012,92453.0,92446.0,0.0811]
[1740448221446,0.01483012,92453.0,92447.0,0.00151419]
[1740448223168,0.01483012,92453.0,92448.0,0.27825163]
[1740448223368,8.806e-05,92453.0,92450.0,0.082]
[1740448223520,8.806e-05,92453.0,92452.0,0.1298]
[1740448224821,8.806e-05,92453.0,92452.0,0.13131396]
[1740448226425,0.01131357,92453.0,92452.0,0.13131396]
[1740448227403,0.01131357,92453.0,92452.0,0.1298]
[1740448227960,0.01131357,92453.0,92452.0,0.40805163]
[1740448228745,0.01131357,92453.0,92452.0,0.36025163]
[1740448229203,0.01131357,92453.0,92452.0,0.27825163]
[1740448229869,0.01131357,92453.0,92443.0,0.0008496]
[1740448230278,0.00231968,92452.0,92443.0,0.0008496]
[1740448230632,0.00590333,92451.0,92443.0,0.0008496]
[1740448231187,0.00231968,92450.0,92443.0,0.0008496]
[1740448232030,0.00325502,92450.0,92443.0,0.0008496]
[1740448232318,0.01131357,92453.0,92443.0,0.0008496]
[1740448232510,0.00323143,92449.0,92443.0,0.0008496]
[1740448232746,0.01131357,92453.0,92443.0,0.0008496]
[1740448232943,0.00323143,92448.0,92443.0,0.0008496]
[1740448233137,0.00649738,92452.0,92443.0,0.0008496]
[1740448233295,0.00323143,92447.0,92443.0,0.0008496]
[1740448233497,0.01131357,92453.0,92443.0,0.0008496]
[1740448233699,0.00323143,92446.0,92443.0,0.0008496]
[1740448233978,0.01131357,92453.0,92443.0,0.0008496]
[1740448234178,0.00323143,92445.0,92443.0,0.0008496]
[1740448234419,0.01131357,92453.0,92443.0,0.0008496]
[1740448234614,0.00323143,92444.0,92433.0,0.26787763]
[1740448234817,0.01131357,92453.0,92434.0,0.03657718]
[1740448235221,0.00322815,92452.0,92434.0,0.03657718]
[1740448235400,0.00322815,92452.0,92434.0,0.00151446]
[1740448235619,0.01131357,92453.0,92434.0,0.00151446]
[1740448235941,0.00322822,92452.0,92434.0,0.00151446]
[1740448236144,0.01131357,92453.0,92434.0,0.00151446]
[1740448236281,0.01131357,92453.0,92434.0,0.26939209]
[1740448236282,0.00322835,92451.0,92434.0,0.26939209]
[1740448236476,0.01131357,92453.0,92434.0,0.26787763]
[1740448236676,0.00322706,92450.0,92435.0,0.00151441]
[1740448236877,0.01131357,92453.0,92435.0,0.00151441]
[1740448237094,0.00322706,92452.0,92435.0,0.00151441]
[1740448237316,0.00322706,92452.0,92435.0,0.26939204]
[1740448237495,0.00322706,92452.0,92435.0,0.26787763]
[1740448238706,0.00322706,92452.0,92436.0,0.00151441]
[1740448239351,0.00322706,92452.0,92437.0,0.02702416]
[1740448239507,0.00322706,92452.0,92438.0,0.08381428]
[1740448240567,0.01131357,92453.0,92438.0,0.08381428]
[1740448241496,0.01131357,92453.0,92438.0,0.0823]
[1740448242026,0.01131357,92453.0,92439.0,0.00151428]
[1740448242786,0.01131357,92453.0,92440.0,0.26787763]
[1740448243161,0.01131357,92453.0,92441.0,0.00151427]
[1740448243603,0.01131357,92453.0,92440.0,0.26787763]
[1740448244181,0.08628546,92452.0,92440.0,0.26787763]
[1740448244383,0.01058592,92451.0,92440.0,0.26787763]
[1740448244786,0.00322755,92450.0,92440.0,0.26787763]
[1740448246922,0.01131357,92453.0,92440.0,0.26787763]
[1740448247144,0.00174448,92449.0,92440.0,0.26787763]
[1740448247335,0.00132417,92449.0,92440.0,0.26787763]
[1740448247503,0.00091687,92449.0,92440.0,0.26787763]
[1740448248597,0.08628546,92445.0,92440.0,0.26787763]
[1740448248901,0.08628546,92445.0,92435.0,0.0008487]
[1740448249037,0.00322507,92444.0,92435.0,0.0008487]
[1740448249882,0.01123031,92443.0,92435.0,0.0008487]
[1740448250313,0.00322507,92442.0,92435.0,0.0008487]
[1740448254214,0.18624804,92455.0,92435.0,0.0008487]
[1740448254455,0.00310989,92441.0,92435.0,0.00093676]
[1740448254659,0.01119281,92441.0,92435.0,0.00093676]
[1740448254862,0.00310989,92440.0,92436.0,0.0819]
[1740448255034,0.0143221,92440.0,92437.0,0.00836864]
[1740448255234,0.01121221,92440.0,92437.0,0.00836864]
[1740448255436,0.00310989,92439.0,92437.0,0.00836864]
[1740448255659,0.00310989,92439.0,92436.0,0.0819]
[1740448255812,0.01121221,92440.0,92436.0,0.0819]
[1740448256215,0.00310989,92439.0,92436.0,0.0819]
[1740448257750,0.01121221,92440.0,92436.0,0.0819]
[1740448262725,0.01121221,92440.0,92435.0,0.26881439]
[1740448263167,0.01215898,92440.0,92435.0,0.26881439]
[1740448263410,0.01121221,92440.0,92435.0,0.26881439]
[1740448264635,0.01121221,92440.0,92435.0,0.00093676]
[1740448264830,0.01121221,92440.0,92415.0,0.1251]
[1740448265059,0.00885366,92439.0,92420.0,0.00097869]
[1740448265281,0.00311244,92439.0,92420.0,0.00097869]
[1740448265483,0.00311244,92439.0,92409.0,0.26787763]
[1740448265484,0.08628546,92433.0,92409.0,0.33473572]
[1740448265684,0.08628546,92433.0,92409.0,0.0762]
[1740448265813,0.00826204,92421.0,92409.0,0.0762]
[1740448266627,0.00826204,92421.0,92396.0,0.25853572]
[1740448266845,0.00826204,92421.0,92403.0,0.078]
[1740448268779,0.00826204,92421.0,92396.0,0.076]
[1740448269509,0.05346204,92421.0,92396.0,0.076]
[1740448269710,0.0073362,92420.0,92396.0,0.076]
[1740448269940,0.01041671,92420.0,92396.0,0.076]
[1740448272807,0.01041671,92420.0,92394.0,0.25853572]
[1740448272808,0.08628546,92419.0,92394.0,0.25853572]
[1740448272984,0.08936281,92419.0,92394.0,0.25853572]
[1740448273211,0.18975795,92418.0,92394.0,0.25853572]
[1740448273782,0.00307735,92417.0,92394.0,0.25853572]
[1740448274954,0.2474184,92416.0,92394.0,0.25853572]
[1740448275531,0.18567535,92415.0,92394.0,0.25853572]
[1740448277024,0.03567535,92415.0,92394.0,0.25853572]
[1740448277164,0.03567535,92415.0,92389.0,0.0818]
[1740448277165,0.00825202,92395.0,92389.0,0.0818]
[1740448277943,0.00825202,92395.0,92385.0,0.00151521]
[1740448278163,0.00825202,92395.0,92382.0,0.00151521]
[1740448278368,0.00307089,92394.0,92382.0,0.00151521]
[1740448279025,0.00307089,92394.0,92393.0,0.07857]
[1740448279240,0.00307089,92394.0,92393.0,0.12807]
[1740448279507,0.00838092,92395.0,92394.0,0.0008489]
[1740448279957,0.01143923,92395.0,92394.0,0.0008489]
[1740448281742,0.02262842,92395.0,92394.0,0.0008489]
[1740448283351,0.02262842,92395.0,92380.0,0.0487]
[1740448283352,0.02262842,92395.0,92380.0,0.04353409]
[1740448283581,0.00099087,92394.0,92381.0,0.00151521]
[1740448284053,0.08628546,92382.0,92336.0,0.02]
[1740448284203,0.0457,92369.0,92337.0,0.00075829]
[1740448284467,0.19787033,92369.0,92343.0,0.5375]
[1740448284689,0.08628546,92360.0,92343.0,0.5375]
[1740448284899,0.17969899,92359.0,92343.0,0.5375]
[1740448285101,0.17969899,92359.0,92334.0,0.0831]
[1740448285102,0.00304335,92358.0,92334.0,0.0831]
[1740448285359,0.00827818,92348.0,92334.0,0.0831]
[1740448285560,0.00827818,92348.0,92312.0,0.0831]
[1740448285814,0.03775041,92347.0,92323.0,0.00012192]
[1740448286024,0.00807283,92324.0,92323.0,0.00012192]
[1740448286472,0.01206018,92324.0,92323.0,0.00012192]
[1740448286679,0.01106931,92324.0,92323.0,0.00012192]
[1740448288796,0.01106931,92324.0,92312.0,0.08353083]
[1740448289128,0.00807283,92324.0,92312.0,0.08353083]
[1740448289336,0.00807283,92324.0,92313.0,0.00076047]
[1740448289858,0.00833929,92328.0,92315.0,0.0756]
[1740448290199,0.0974184,92339.0,92316.0,0.07635987]
[1740448290340,0.0974184,92339.0,92317.0,0.5375]
[1740448290554,0.0974184,92345.0,92318.0,0.00075969]
[1740448290748,0.0974184,92345.0,92319.0,0.06142905]
[1740448290953,0.0974184,92345.0,92316.0,0.0756]
[1740448290954,0.0081357,92334.0,92316.0,0.0756]
[1740448291352,0.00099448,92333.0,92316.0,0.0756]
[1740448291569,0.00189543,92332.0,92316.0,0.0756]
[1740448291769,0.00189543,92332.0,92312.0,0.00043083]
[1740448292050,0.00099448,92331.0,92312.0,0.00043083]
[1740448292230,0.0018956,92330.0,92323.0,0.0008493]
[1740448292679,0.00296871,92329.0,92323.0,0.0008493]
[1740448292886,0.00296871,92329.0,92312.0,0.00043083]
[1740448292887,0.00189562,92328.0,92312.0,0.00043083]
[1740448293086,0.04095641,92327.0,92298.0,0.0801]
[1740448293257,0.00189581,92326.0,92310.0,0.00097812]
[1740448293495,0.00289029,92326.0,92310.0,0.00097812]
[1740448293905,0.00295709,92325.0,92310.0,0.00097812]
[1740448294225,0.0009968,92324.0,92303.0,0.0008489]
[1740448294430,0.0316005,92323.0,92303.0,0.00097826]
[1740448294673,0.04261909,92322.0,92303.0,0.00097826]
[1740448294872,0.01215242,92321.0,92303.0,0.00097826]
[1740448295218,0.00295506,92320.0,92303.0,0.00097826]
[1740448295368,0.00189585,92319.0,92303.0,0.00097826]
[1740448296092,0.00295506,92318.0,92303.0,0.00097826]
[1740448296298,0.001896,92317.0,92303.0,0.00097826]
[1740448296532,0.08628546,92315.0,92303.0,1e-08]
[1740448296734,0.17571415,92314.0,92303.0,1e-08]
[1740448296937,0.15584726,92314.0,92303.0,1e-08]
[1740448297266,0.15485046,92314.0,92303.0,1e-08]
[1740448297818,0.0009968,92313.0,92303.0,1e-08]
[1740448298003,0.001896,92312.0,92303.0,1e-08]
[1740448298365,0.00393079,92311.0,92303.0,1e-08]
[1740448298555,0.00828414,92304.0,92300.0,0.01821606]
[1740448299183,0.00293399,92303.0,92300.0,0.01821606]
[1740448299362,0.00393229,92303.0,92300.0,1e-08]
[1740448299771,0.01118617,92302.0,92300.0,1e-08]
[1740448300300,0.00293399,92301.0,92300.0,1e-08]
[1740448301353,0.00293399,92301.0,92300.0,0.08100001]
[1740448301759,0.01118617,92302.0,92300.0,0.08100001]
[1740448302266,0.00828414,92304.0,92300.0,0.08100001]
[1740448303266,0.00828414,92304.0,92300.0,1e-08]
[1740448303958,0.00293262,92303.0,92300.0,1e-08]
[1740448304101,0.00293262,92303.0,92300.0,0.00085011]
[1740448304300,0.00293262,92303.0,92302.0,0.0764]
[1740448304499,0.00828414,92304.0,92302.0,0.0764]
[1740448304737,0.00828414,92304.0,92303.0,0.00076093]
[1740448305557,0.00012884,92311.0,92303.0,0.00076093]
[1740448305966,0.00012884,92311.0,92305.0,0.0478]
[1740448306166,0.00012884,92311.0,92306.0,0.00076056]
[1740448306396,0.00012884,92311.0,92307.0,0.0782]
[1740448306653,0.00012884,92311.0,92309.0,0.0831]
[1740448306876,0.00012884,92311.0,92310.0,0.08386021]
[1740448307080,0.01321087,92330.0,92311.0,0.0481]
[1740448307282,0.0974184,92343.0,92312.0,0.08386021]
[1740448307498,0.00293262,92329.0,92314.0,0.1328]
[1740448307702,0.0975476,92343.0,92316.0,0.0829]
[1740448307908,0.0975476,92343.0,92318.0,0.0829]
[1740448307909,0.11111671,92343.0,92318.0,0.0829]
[1740448308110,0.11111671,92343.0,92321.0,0.0829]
[1740448308307,0.15,92342.0,92323.0,0.0829]
[1740448308523,0.11111671,92343.0,92325.0,0.0829]
[1740448308729,0.00293262,92341.0,92326.0,0.08255945]
[1740448308928,0.11111671,92343.0,92326.0,0.08255945]
[1740448309134,0.01369831,92343.0,92328.0,0.0826]
[1740448309476,0.0001292,92343.0,92330.0,0.0826]
[1740448309681,0.0001292,92343.0,92332.0,0.0826]
[1740448309852,0.0001292,92343.0,92334.0,0.0795]
[1740448310073,0.0001292,92343.0,92335.0,0.33879493]
[1740448310280,0.0001292,92343.0,92336.0,0.04944298]
[1740448310487,0.0001292,92343.0,92337.0,0.08025918]
[1740448310622,0.0001292,92343.0,92337.0,0.0795]
[1740448311046,0.00298972,92342.0,92337.0,0.0795]
[1740448311248,0.00298972,92342.0,92322.0,0.078]
[1740448311462,0.0081092,92338.0,92322.0,0.078]
[1740448311838,0.00298108,92337.0,92323.0,0.00076014]
[1740448312035,0.00298108,92337.0,92322.0,0.078]
[1740448312216,0.01114583,92336.0,92322.0,0.078]
[1740448312779,0.01114583,92336.0,92323.0,0.00076014]
[1740448313142,0.01114583,92336.0,92322.0,0.078]
[1740448313344,0.01114583,92336.0,92323.0,0.01321014]
[1740448313548,0.01114583,92336.0,92322.0,0.078]
[1740448314158,0.0018953,92335.0,92322.0,0.078]
[1740448314483,0.00486963,92335.0,92322.0,0.078]
[1740448315266,0.00297433,92335.0,92322.0,0.078]
[1740448316473,0.01699745,92369.0,92322.0,0.078]
[1740448316678,0.00286601,92334.0,92323.0,0.0078]
[1740448316859,0.00113511,92343.0,92323.0,0.0078]
[1740448317432,0.00286675,92342.0,92323.0,0.0078]
[1740448318285,0.00810508,92324.0,92323.0,0.0078]
[1740448318493,0.00810508,92324.0,92322.0,0.0781292]
[1740448319698,0.00810508,92324.0,92322.0,0.0001292]
[1740448320106,0.00286641,92323.0,92322.0,0.0001292]
[1740448320708,0.00400152,92323.0,92322.0,0.0001292]
[1740448322054,0.00400152,92323.0,92288.0,0.08061589]
[1740448322268,0.08628546,92309.0,92288.0,0.00043153]
[1740448322471,0.08628546,92309.0,92274.0,0.0778]
[1740448322472,0.17957366,92308.0,92274.0,0.0778]
[1740448322677,0.18241412,92308.0,92274.0,0.0778]
[1740448322897,0.0080453,92289.0,92274.0,0.0778]
[1740448323789,0.15,92308.0,92274.0,0.07931701]
[1740448324005,0.15,92308.0,92276.0,0.0779]
[1740448324205,0.00827689,92297.0,92278.0,0.0779]
[1740448324364,0.00827689,92297.0,92279.0,0.00151683]
[1740448324766,0.00827689,92297.0,92280.0,0.0784]
[1740448324989,0.00827689,92297.0,92281.0,0.00151669]
[1740448325349,0.00043065,92309.0,92283.0,0.0784]
[1740448325554,0.00043065,92309.0,92284.0,0.00151664]
[1740448325869,0.00811869,92300.0,92285.0,0.0816]
[1740448326070,0.00811869,92300.0,92286.0,0.00151665]
[1740448326320,0.00811869,92300.0,92285.0,0.0816]
[1740448328563,0.00811869,92300.0,92278.0,0.0815]
[1740448328775,0.23742057,92299.0,92271.0,0.0815]
[1740448328926,0.08628546,92289.0,92271.0,0.0815]
[1740448329328,0.00271023,92288.0,92281.0,0.0008504]
[1740448329710,0.00384534,92288.0,92281.0,0.0008504]
[1740448329940,0.01285842,92288.0,92281.0,0.0008504]
[1740448330647,0.00384534,92288.0,92271.0,0.0815]
[1740448330886,0.00113511,92288.0,92271.0,0.0815]
[1740448331579,0.08628546,92289.0,92271.0,0.0815]
[1740448331804,0.00113511,92297.0,92271.0,0.0815]
[1740448332007,0.00113511,92297.0,92272.0,0.00953618]
[1740448332120,0.15,92298.0,92272.0,0.00953618]
[1740448332325,0.15,92298.0,92273.0,0.00151691]
[1740448332326,0.00270686,92296.0,92273.0,0.00151691]
[1740448332530,0.01118726,92296.0,92273.0,0.00151691]